bitfinex/quotes_BTCUSD_20240701
["timestamp","ask_amount","ask_price","bid_price","bid_amount"]
[1719875899222,2.35547578,63041.0,63040.0,0.001324]
[1719875899467,2.35571538,63041.0,63040.0,0.001324]
[1719875899676,2.15581538,63041.0,63040.0,0.001324]
[1719875899854,2.35571538,63041.0,63040.0,0.001324]
[1719875901300,2.45581538,63041.0,63040.0,0.001324]
[1719875902264,2.40100081,63041.0,63040.0,0.001324]
[1719875902671,2.40092787,63041.0,63040.0,0.001324]
[1719875903315,2.4557321,63041.0,63040.0,0.001324]
[1719875904757,2.40092787,63041.0,63040.0,0.001324]
[1719875904956,2.45573448,63041.0,63040.0,0.001324]
[1719875905955,2.39104406,63041.0,63040.0,0.001324]
[1719875906174,2.09104406,63041.0,63040.0,0.001324]
[1719875906363,2.12039622,63041.0,63040.0,0.001324]
[1719875906660,2.1557205,63041.0,63040.0,0.001324]
[1719875907697,2.15573286,63041.0,63040.0,0.001324]
[1719875909016,2.1558624,63041.0,63040.0,0.001324]
[1719875909223,2.03634264,63041.0,63040.0,0.001324]
[1719875909429,2.10104264,63041.0,63040.0,0.001324]
[1719875909628,2.15586009,63041.0,63040.0,0.001324]
[1719875911021,2.15590651,63041.0,63040.0,0.001324]
[1719875911253,2.59885047,63041.0,63040.0,0.001324]
[1719875912009,2.15590651,63041.0,63040.0,0.001324]
[1719875912147,2.10120583,63041.0,63040.0,0.001324]
[1719875912352,2.40120583,63041.0,63040.0,0.001324]
[1719875913294,2.59903202,63041.0,63040.0,0.001324]
[1719875913789,2.45606407,63041.0,63040.0,0.001324]
[1719875914498,2.59903202,63041.0,63040.0,0.001324]
[1719875914922,2.45606407,63041.0,63040.0,0.001324]
[1719875915115,2.59903202,63041.0,63040.0,0.001324]
[1719875915524,2.45606407,63041.0,63040.0,0.001324]
[1719875915688,2.15606407,63041.0,63040.0,0.001324]
[1719875916105,2.10120583,63041.0,63040.0,0.001324]
[1719875916641,2.15606272,63041.0,63040.0,0.001324]
[1719875916838,2.1148651,63041.0,63040.0,0.001324]
[1719875918564,2.07940981,63041.0,63040.0,0.001324]
[1719875918807,2.1154216,63041.0,63040.0,0.001324]
[1719875919008,2.07940267,63041.0,63040.0,0.001324]
[1719875919216,2.11541386,63041.0,63040.0,0.001324]
[1719875920306,2.06054704,63041.0,63040.0,0.001324]
[1719875921610,2.06057625,63041.0,63040.0,0.001324]
[1719875922505,2.41544207,63041.0,63040.0,0.001324]
[1719875923321,2.55841549,63041.0,63040.0,0.001324]
[1719875923717,2.45663963,63041.0,63040.0,0.001324]
[1719875924086,2.40177381,63041.0,63040.0,0.001324]
[1719875924818,2.3508624,63041.0,63040.0,0.001324]
[1719875924996,2.59957133,63041.0,63040.0,0.001324]
[1719875925570,2.45659772,63041.0,63040.0,0.001324]
[1719875926305,2.40173051,63041.0,63040.0,0.001324]
[1719875926709,2.45659991,63041.0,63040.0,0.001324]
[1719875927104,2.29957352,63041.0,63040.0,0.001324]
[1719875927276,2.15659991,63041.0,63040.0,0.001324]
[1719875928071,2.10171456,63041.0,63040.0,0.001324]
[1719875929493,2.40171456,63041.0,63040.0,0.001324]
[1719875931128,2.59951785,63041.0,63040.0,0.001324]
[1719875931337,2.95773957,63041.0,63040.0,0.001324]
[1719875931543,2.95593001,63041.0,63040.0,0.001324]
[1719875931944,3.09858706,63041.0,63040.0,0.001324]
[1719875932352,3.37286623,63041.0,63040.0,0.001324]
[1719875932736,3.52572218,63041.0,63040.0,0.001324]
[1719875932924,3.37775323,63041.0,63040.0,0.001324]
[1719875933136,3.37575323,63041.0,63040.0,0.001324]
[1719875933401,3.5257172,63041.0,63040.0,0.002324]
[1719875933595,3.38275323,63041.0,63040.0,0.002324]
[1719875934332,3.38275323,63041.0,63040.0,0.003324]
[1719875934333,3.34058534,63041.0,63040.0,0.003324]
[1719875934540,3.34058534,63041.0,63040.0,0.001324]
[1719875934541,3.38323315,63041.0,63040.0,0.001324]
[1719875934680,3.38324435,63041.0,63040.0,0.001324]
[1719875934885,3.52618805,63041.0,63040.0,0.001324]
[1719875935100,3.38324435,63041.0,63040.0,0.001324]
[1719875935302,3.52618712,63041.0,63040.0,0.001324]
[1719875935703,3.38324435,63041.0,63040.0,0.001324]
[1719875935883,3.54519481,63041.0,63040.0,0.003324]
[1719875936116,3.40224435,63041.0,63040.0,0.003324]
[1719875937326,3.56944435,63041.0,63040.0,0.003324]
[1719875937531,3.59244435,63041.0,63040.0,0.003324]
[1719875937944,3.90969735,63041.0,63040.0,0.003324]
[1719875938511,4.05262178,63041.0,63040.0,0.003324]
[1719875939738,3.90969735,63041.0,63040.0,0.003324]
[1719875940171,3.90949882,63041.0,63040.0,0.003324]
[1719875940633,3.90949913,63041.0,63040.0,0.003324]
[1719875941289,4.05241979,63041.0,63040.0,0.003324]
[1719875941505,3.90949913,63041.0,63040.0,0.003324]
[1719875941915,3.73514857,63041.0,63040.0,0.003324]
[1719875942457,3.59224613,63041.0,63040.0,0.003324]
[1719875942581,3.50454613,63041.0,63040.0,0.003324]
[1719875942785,3.56924613,63041.0,63040.0,0.003324]
[1719875943188,3.51472437,63041.0,63040.0,0.003324]
[1719875943585,3.46198908,63041.0,63040.0,0.003324]
[1719875943786,3.56945791,63041.0,63040.0,0.003324]
[1719875945040,3.34742576,63041.0,63040.0,0.003324]
[1719875946127,3.21072576,63041.0,63040.0,0.003324]
[1719875946303,3.10731603,63041.0,63040.0,0.003324]
[1719875946508,3.26514669,63041.0,63040.0,0.003324]
[1719875946704,3.40804778,63041.0,63040.0,0.003324]
[1719875946906,3.26514669,63041.0,63040.0,0.003324]
[1719875947544,3.22394913,63041.0,63040.0,0.003324]
[1719875947748,3.36685022,63041.0,63040.0,0.003324]
[1719875948126,3.22394913,63041.0,63040.0,0.003324]
[1719875948726,3.26515056,63041.0,63040.0,0.003324]
[1719875949166,3.2103614,63041.0,63040.0,0.003324]
[1719875949567,3.26533539,63041.0,63040.0,0.003324]
[1719875950137,3.22413396,63041.0,63040.0,0.003324]
[1719875951045,3.16933217,63041.0,63040.0,0.003324]
[1719875951690,3.22409027,63041.0,63040.0,0.003324]
[1719875952690,3.06611847,63041.0,63040.0,0.003324]
[1719875952904,3.31157279,63041.0,63040.0,0.003324]
[1719875953540,3.36633641,63041.0,63040.0,0.003324]
[1719875955100,3.16887279,63041.0,63040.0,0.003324]
[1719875955395,3.36633425,63041.0,63040.0,0.003324]
[1719875955607,3.50923992,63041.0,63040.0,0.003324]
[1719875956018,3.50833855,63041.0,63040.0,0.003324]
[1719875956456,3.36516511,63041.0,63040.0,0.003324]
[1719875957024,3.50807121,63041.0,63040.0,0.003324]
[1719875957642,3.36516511,63041.0,63040.0,0.003324]
[1719875958939,3.36545436,63041.0,63040.0,0.003324]
[1719875961283,3.50834752,63041.0,63040.0,0.003324]
[1719875962082,3.31390698,63041.0,63040.0,0.003324]
[1719875962282,3.36505064,63041.0,63040.0,0.003324]
[1719875963021,3.69458435,63041.0,63040.0,0.002924]
[1719875963229,2.74494937,63029.0,63028.0,0.000924]
[1719875963436,3.0738441,63029.0,63028.0,0.000924]
[1719875963637,3.18989752,63029.0,63028.0,0.000924]
[1719875963842,3.30897512,63029.0,63028.0,0.000924]
[1719875963972,3.28989752,63029.0,63028.0,0.000924]
[1719875964175,3.18989752,63029.0,63028.0,0.000924]
[1719875964404,3.30896036,63029.0,63028.0,0.000924]
[1719875964601,3.30896036,63029.0,63028.0,0.001924]
[1719875964602,3.26034287,63029.0,63028.0,0.001924]
[1719875964802,3.32135541,63029.0,63028.0,0.001924]
[1719875965010,3.16034287,63029.0,63028.0,0.002924]
[1719875965225,3.2674208,63029.0,63028.0,0.002924]
[1719875965886,3.42842207,63029.0,63028.0,0.002924]
[1719875966264,3.38647431,63029.0,63028.0,0.002924]
[1719875966418,3.42841758,63029.0,63028.0,0.002924]
[1719875966626,3.2674208,63029.0,63028.0,0.002924]
[1719875968475,3.42801238,63029.0,63028.0,0.002924]
[1719875969050,3.26723013,63029.0,63028.0,0.002924]
[1719875969446,3.42789487,63029.0,63028.0,0.002924]
[1719875970548,3.26723013,63029.0,63028.0,0.002924]
[1719875971148,3.20533013,63029.0,63028.0,0.002924]
[1719875971287,3.36639628,63029.0,63028.0,0.002924]
[1719875971515,3.14494177,63029.0,63028.0,0.002924]
[1719875971739,3.20541954,63029.0,63028.0,0.002924]
[1719875971994,3.24742911,63029.0,63028.0,0.002924]
[1719875972209,3.12531954,63029.0,63028.0,0.002924]
[1719875972425,2.86731754,63029.0,63028.0,0.002924]
[1719875972636,2.76731754,63029.0,63028.0,0.148424]
[1719875972845,2.82056142,63029.0,63028.0,0.148424]
[1719875973062,2.72531954,63029.0,63028.0,0.148424]
[1719875974735,2.71532919,63029.0,63028.0,0.148424]
[1719875974942,2.72521608,63029.0,63028.0,0.148424]
[1719875975669,2.72511608,63029.0,63028.0,0.148424]
[1719875975872,1.39588808,63029.0,63028.0,0.148424]
[1719875976454,1.36161432,63029.0,63028.0,0.148424]
[1719875976671,1.00290581,63029.0,63028.0,0.148424]
[1719875976915,1.04430032,63029.0,63028.0,0.148424]
[1719875977288,1.36161432,63029.0,63028.0,0.148424]
[1719875977977,1.36551377,63029.0,63028.0,0.148424]
[1719875978191,1.42599044,63029.0,63028.0,0.148424]
[1719875978425,1.36166693,63029.0,63028.0,0.148424]
[1719875978683,1.36156693,63029.0,63028.0,0.148424]
[1719875978982,1.39591658,63029.0,63028.0,0.148424]
[1719875979109,1.55730248,63029.0,63028.0,0.148424]
[1719875979735,1.36156693,63029.0,63028.0,0.148424]
[1719875980135,1.39598365,63029.0,63028.0,0.148424]
[1719875980597,1.39592422,63029.0,63028.0,0.148424]
[1719875981407,1.35169157,63029.0,63028.0,0.148424]
[1719875981629,1.39157811,63029.0,63028.0,0.148424]
[1719875981832,1.39167811,63029.0,63028.0,0.148424]
[1719875981968,1.36167811,63029.0,63028.0,0.148424]
[1719875982174,1.42601229,63029.0,63028.0,0.148424]
[1719875983034,1.42603684,63029.0,63028.0,0.148424]
[1719875983829,1.39167811,63029.0,63028.0,0.148424]
[1719875984268,1.36551377,63029.0,63028.0,0.148424]
[1719875984514,1.39177755,63029.0,63028.0,0.148424]
[1719875984755,1.42611417,63029.0,63028.0,0.148524]
[1719875985164,1.42601417,63029.0,63028.0,0.148524]
[1719875985471,1.39167755,63029.0,63028.0,0.148524]
[1719875986247,1.39177755,63029.0,63028.0,0.148524]
[1719875986471,1.42611066,63029.0,63028.0,0.148524]
[1719875987543,1.39995645,63029.0,63028.0,0.148524]
[1719875987742,1.42612963,63029.0,63028.0,0.148524]
[1719875988108,1.42612963,63029.0,63028.0,0.084924]
[1719875990844,1.42618495,63029.0,63028.0,0.084924]
[1719875991495,1.42618495,63029.0,63028.0,0.003024]
[1719875994174,1.42614137,63029.0,63028.0,0.003024]
[1719875994525,1.42614064,63029.0,63028.0,0.003024]
[1719875995623,1.42624064,63029.0,63028.0,0.003024]
[1719875995947,1.42624064,63029.0,63028.0,0.003124]
[1719875997266,1.42628916,63029.0,63028.0,0.003124]
[1719875997435,1.42628871,63029.0,63028.0,0.003124]
[1719875999629,1.78708871,63029.0,63028.0,0.003124]
[1719875999824,2.28010271,63029.0,63028.0,0.003124]
[1719876000445,2.58005511,63029.0,63028.0,0.003124]
[1719876000772,2.77995511,63029.0,63028.0,0.003124]
[1719876000933,3.09726911,63029.0,63028.0,0.003124]
[1719876001103,3.13847662,63029.0,63028.0,0.003124]
[1719876001313,3.23847662,63029.0,63028.0,0.003124]
[1719876001685,3.13847662,63029.0,63028.0,0.003124]
[1719876001890,3.13931662,63029.0,63028.0,0.003124]
[1719876002163,3.23931662,63029.0,63028.0,0.003124]
[1719876002365,3.18169818,63029.0,63028.0,0.003124]
[1719876002535,3.14049067,63029.0,63028.0,0.003124]
[1719876002891,3.24049067,63029.0,63028.0,0.003124]
[1719876003967,3.55780467,63029.0,63028.0,0.003124]
[1719876004096,3.58080467,63029.0,63028.0,0.003124]
[1719876004300,3.53842522,63029.0,63028.0,0.003124]
[1719876006656,3.52642522,63029.0,63028.0,0.002124]
[1719876006910,3.52602967,63029.0,63028.0,0.002124]
[1719876007103,3.53302967,63029.0,63028.0,0.001124]
[1719876007237,3.54702967,63029.0,63028.0,0.001124]
[1719876009626,3.59467701,63029.0,63028.0,0.001124]
[1719876010173,3.54702967,63029.0,63028.0,0.001124]
[1719876010742,3.54766441,63029.0,63028.0,0.001124]
[1719876010927,3.59532901,63029.0,63028.0,0.001124]
[1719876011122,3.584854,63029.0,63028.0,0.001124]
[1719876011336,3.54768501,63029.0,63028.0,0.001124]
[1719876013039,3.76255289,63029.0,63028.0,1e-06]
[1719876013462,4.06255289,63029.0,63028.0,1e-06]
[1719876013871,4.06301877,63029.0,63028.0,1e-06]
[1719876014243,4.01518444,63029.0,63028.0,1e-06]
[1719876014445,4.06301877,63029.0,63028.0,1e-06]
[1719876015076,4.01518444,63029.0,63028.0,1e-06]
[1719876015294,4.06262287,63029.0,63028.0,1e-06]
[1719876015916,4.27269965,63029.0,63028.0,1e-06]
[1719876016277,4.22481056,63029.0,63028.0,1e-06]
[1719876016476,4.72481056,63029.0,63028.0,1e-06]
[1719876016870,5.04212456,63029.0,63028.0,1e-06]
[1719876017066,5.04164549,63029.0,63028.0,1e-06]
[1719876017289,5.04164549,63029.0,63010.0,0.000924]
[1719876017290,2.30325437,63011.0,63010.0,0.000924]
[1719876017492,2.65656694,63011.0,63010.0,0.000924]
[1719876017728,2.66215696,63011.0,63010.0,0.000924]
[1719876017950,2.67204459,63011.0,63010.0,0.000924]
[1719876018356,2.60734459,63011.0,63010.0,0.000924]
[1719876018559,2.67980408,63011.0,63010.0,0.000924]
[1719876018941,2.66215696,63011.0,63010.0,0.000924]
[1719876019326,2.96215696,63011.0,63010.0,0.000924]
[1719876019724,2.97955424,63011.0,63010.0,0.000924]
[1719876020125,2.99255424,63011.0,63010.0,0.000924]
[1719876020406,2.99249969,63011.0,63010.0,0.000924]
[1719876020579,2.97510241,63011.0,63010.0,0.000924]
[1719876020781,3.00708307,63011.0,63010.0,0.000924]
[1719876021083,3.00688307,63011.0,63010.0,0.000924]
[1719876021286,2.98890241,63011.0,63010.0,0.000924]
[1719876021487,3.00581876,63011.0,63010.0,0.000924]
[1719876021699,3.10581876,63011.0,63010.0,0.000924]
[1719876021891,3.00581876,63011.0,63010.0,0.000924]
[1719876022090,2.98890241,63011.0,63010.0,0.000924]
[1719876022424,3.10582131,63011.0,63010.0,0.000924]
[1719876023138,3.09282131,63011.0,63010.0,0.000924]
[1719876023343,3.05988174,63011.0,63010.0,0.000924]
[1719876023604,3.10706695,63011.0,63010.0,0.000924]
[1719876024151,3.09306695,63011.0,63010.0,0.000924]
[1719876024512,3.10706695,63011.0,63010.0,0.000924]
[1719876024675,3.10716695,63011.0,63010.0,0.000924]
[1719876024886,3.09008185,63011.0,63010.0,0.000924]
[1719876025092,3.09008185,63011.0,63010.0,0.001024]
[1719876025530,3.10734208,63011.0,63010.0,0.001024]
[1719876026119,3.09008185,63011.0,63010.0,0.001024]
[1719876026319,3.10719803,63011.0,63010.0,0.001024]
[1719876026553,3.10720271,63011.0,63010.0,0.001024]
[1719876026764,3.09007613,63011.0,63010.0,0.001024]
[1719876027079,3.04250271,63011.0,63010.0,0.001024]
[1719876027302,3.10720271,63011.0,63010.0,0.001024]
[1719876027472,3.09007613,63011.0,63010.0,0.001024]
[1719876027675,3.10670877,63011.0,63010.0,0.001024]
[1719876028703,3.08997613,63011.0,63010.0,0.001024]
[1719876029211,3.10751727,63011.0,63010.0,0.001024]
[1719876029414,3.09007613,63011.0,63010.0,0.001024]
[1719876029622,3.09017613,63011.0,63010.0,0.001024]
[1719876029818,3.09021488,63011.0,63010.0,0.001124]
[1719876030005,3.10708049,63011.0,63010.0,0.001124]
[1719876030215,3.09021488,63011.0,63010.0,0.001124]
[1719876030590,3.10708049,63011.0,63010.0,0.001124]
[1719876031176,3.09021488,63011.0,63010.0,0.001124]
[1719876032198,3.10700205,63011.0,63010.0,0.001124]
[1719876032615,2.79021488,63011.0,63010.0,0.001124]
[1719876032837,3.07418174,63011.0,63010.0,0.001124]
[1719876033039,3.10757659,63011.0,63010.0,0.001124]
[1719876033437,3.09013059,63011.0,63010.0,0.001124]
[1719876034205,3.10698974,63011.0,63010.0,0.001124]
[1719876034802,3.09013059,63011.0,63010.0,0.001124]
[1719876034950,3.09097059,63011.0,63010.0,0.001124]
[1719876035155,3.10850869,63011.0,63010.0,0.001124]
[1719876035733,3.09097059,63011.0,63010.0,0.001124]
[1719876035934,3.10844341,63011.0,63010.0,0.001124]
[1719876036153,3.10845112,63011.0,63010.0,0.001124]
[1719876036513,3.07492174,63011.0,63010.0,0.001124]
[1719876036713,3.09077196,63011.0,63010.0,0.001124]
[1719876038116,3.10751016,63011.0,63010.0,0.001124]
[1719876038473,3.39234759,63011.0,63010.0,0.001124]
[1719876039145,3.53296438,63011.0,63010.0,0.001124]
[1719876039661,3.390246,63011.0,63010.0,0.001124]
[1719876040269,3.85021734,63011.0,63010.0,0.001124]
[1719876040580,3.82898542,63011.0,63010.0,0.001124]
[1719876040787,3.82898542,63011.0,63010.0,0.001024]
[1719876041277,3.80098542,63011.0,63010.0,0.001024]
[1719876041419,4.28568942,63011.0,63010.0,1e-06]
[1719876041816,4.44624759,63011.0,63010.0,1e-06]
[1719876042123,4.02172974,63011.0,63010.0,1e-06]
[1719876042348,4.02172974,63011.0,63000.0,0.00924]
[1719876042349,3.08793837,63001.0,63000.0,0.00924]
[1719876042560,3.71113449,63001.0,63000.0,0.00924]
[1719876042762,3.82672976,63001.0,63000.0,0.00924]
[1719876043019,3.72672976,63001.0,63000.0,0.00924]
[1719876043270,3.43306895,63001.0,63000.0,0.00924]
[1719876043462,3.33817476,63001.0,63000.0,0.00924]
[1719876043609,3.34617476,63001.0,63000.0,0.00924]
[1719876044633,3.35517476,63001.0,63000.0,0.00924]
[1719876045242,3.23011762,63001.0,63000.0,0.00924]
[1719876045451,3.35573479,63001.0,63000.0,0.00924]
[1719876046869,3.67318979,63001.0,63000.0,0.00924]
[1719876048319,3.84046115,63001.0,63000.0,0.00924]
[1719876048763,3.76536283,63001.0,63000.0,0.00924]
[1719876048965,3.84031482,63001.0,63000.0,0.00924]
[1719876049481,3.77561482,63001.0,63000.0,0.00924]
[1719876049684,3.84031482,63001.0,63000.0,0.00924]
[1719876050287,3.14655982,63001.0,63000.0,0.00924]
[1719876050441,3.21125982,63001.0,63000.0,0.00924]
[1719876051060,3.27745982,63001.0,63000.0,0.00924]
[1719876051286,3.22159281,63001.0,63000.0,0.00924]
[1719876051517,3.2217386,63001.0,63000.0,0.00924]
[1719876051753,3.1570386,63001.0,63000.0,0.00924]
[1719876052136,3.1555386,63001.0,63000.0,0.00924]
[1719876054491,3.2307386,63001.0,63000.0,0.00924]
[1719876054692,3.23303174,63001.0,63000.0,0.00924]
[1719876057774,3.16101762,63001.0,63000.0,0.00924]
[1719876057982,3.23293323,63001.0,63000.0,0.00924]
[1719876060903,3.23250592,63001.0,63000.0,0.00924]
[1719876061327,3.16101762,63001.0,63000.0,0.00924]
[1719876061524,3.28975056,63001.0,63000.0,0.00924]
[1719876061964,3.14985056,63001.0,63000.0,0.00924]
[1719876062181,3.21455056,63001.0,63000.0,0.00924]
[1719876063339,3.21628408,63001.0,63000.0,0.00924]
[1719876063956,3.15820874,63001.0,63000.0,0.00924]
[1719876064192,3.21626135,63001.0,63000.0,0.00924]
[1719876064487,3.08581762,63001.0,63000.0,0.00924]
[1719876064634,3.21618649,63001.0,63000.0,0.00924]
[1719876066398,3.27111378,63001.0,63000.0,0.00924]
[1719876066579,3.16525113,63001.0,63000.0,0.00924]
[1719876066894,3.27112938,63001.0,63000.0,0.00924]
[1719876068079,3.20642938,63001.0,63000.0,0.00924]
[1719876068243,3.27112938,63001.0,63000.0,0.00924]
[1719876069212,2.90642938,63001.0,63000.0,0.00924]
[1719876069447,3.27112938,63001.0,63000.0,0.00924]
[1719876069647,3.24918098,63001.0,63000.0,0.00924]
[1719876070198,3.35075884,63001.0,63000.0,0.00924]
[1719876071150,3.32728724,63001.0,63000.0,0.00924]
[1719876071334,3.39198724,63001.0,63000.0,0.00924]
[1719876071574,3.09198724,63001.0,63000.0,0.00924]
[1719876072320,2.09237724,63001.0,63000.0,0.15284]
[1719876072677,1.99079938,63001.0,63000.0,0.15284]
[1719876073079,1.79255189,63001.0,63000.0,0.15284]
[1719876073280,1.91681209,63001.0,63000.0,0.15284]
[1719876073482,1.84510814,63001.0,63000.0,0.15284]
[1719876073708,1.86173307,63001.0,63000.0,0.15284]
[1719876074840,1.47957807,63001.0,63000.0,0.15284]
[1719876075992,1.4282774,63001.0,63000.0,0.15284]
[1719876076197,1.4795402,63001.0,63000.0,0.15284]
[1719876077071,1.47922454,63001.0,63000.0,0.15284]
[1719876077960,1.79667954,63001.0,63000.0,0.15284]
[1719876079329,1.79646002,63001.0,63000.0,0.15284]
[1719876082517,1.66320762,63001.0,63000.0,0.15284]
[1719876082691,1.79664325,63001.0,63000.0,0.15284]
[1719876085254,1.89153758,63001.0,63000.0,0.15284]
[1719876085841,1.89162804,63001.0,63000.0,0.15284]
[1719876086358,1.7964174,63001.0,63000.0,0.15284]
[1719876087171,1.91542976,63001.0,63000.0,0.15284]
[1719876088082,1.7964174,63001.0,63000.0,0.15284]
[1719876088845,1.79652559,63001.0,63000.0,0.15284]
[1719876091882,1.54552004,63001.0,63000.0,0.15284]
[1719876092103,1.79657681,63001.0,63000.0,0.15284]
[1719876095001,1.79657681,63001.0,63000.0,0.09114]
[1719876095334,1.79654347,63001.0,63000.0,0.09114]
[1719876095501,1.851596,63001.0,63000.0,0.09114]
[1719876095651,1.651796,63001.0,63000.0,0.09114]
[1719876095849,1.851596,63001.0,63000.0,0.09114]
[1719876098605,1.8516297,63001.0,63000.0,0.09114]
[1719876101497,1.70255901,63001.0,63000.0,0.09114]
[1719876101841,1.85161783,63001.0,63000.0,0.09114]
[1719876103895,1.65181783,63001.0,63000.0,0.09114]
[1719876104097,1.85161783,63001.0,63000.0,0.09114]
[1719876104731,1.85157452,63001.0,63000.0,0.09114]
[1719876106630,1.65177452,63001.0,63000.0,0.09114]
[1719876106816,1.85157452,63001.0,63000.0,0.09114]
[1719876108081,1.85158395,63001.0,63000.0,0.09114]
[1719876108295,1.99445363,63001.0,63000.0,0.00924]
[1719876108445,1.79465363,63001.0,63000.0,0.00924]
[1719876108632,1.65178395,63001.0,63000.0,0.00924]
[1719876108837,1.85158395,63001.0,63000.0,0.00924]
[1719876109303,1.65178395,63001.0,63000.0,0.00924]
[1719876109483,1.85158395,63001.0,63000.0,0.00924]
[1719876109884,1.65178395,63001.0,63000.0,0.00924]
[1719876110118,1.85158395,63001.0,63000.0,0.00924]
[1719876110475,1.65178395,63001.0,63000.0,0.00924]
[1719876110888,1.85158395,63001.0,63000.0,0.00924]
[1719876111256,2.00433614,63001.0,63000.0,0.00924]
[1719876111375,1.85959704,63001.0,63000.0,0.00924]
[1719876111569,2.05939704,63001.0,63000.0,0.00924]
[1719876111798,2.05941188,63001.0,63000.0,0.00924]
[1719876112333,1.85961188,63001.0,63000.0,0.00924]
[1719876112650,2.05941188,63001.0,63000.0,0.00924]
[1719876112955,1.99471188,63001.0,63000.0,0.00924]
[1719876113389,2.05941188,63001.0,63000.0,0.00924]
[1719876114118,1.81015967,63001.0,63000.0,0.00924]
[1719876114320,1.77644752,63001.0,63000.0,0.00924]
[1719876114631,1.97624752,63001.0,63000.0,0.00924]
[1719876117380,1.89379796,63001.0,63000.0,0.00924]
[1719876117578,1.97626455,63001.0,63000.0,0.00924]
[1719876118220,2.29371955,63001.0,63000.0,0.00924]
[1719876120596,2.2936909,63001.0,63000.0,0.00924]
[1719876120835,2.0938909,63001.0,63000.0,0.00924]
[1719876121034,2.2936909,63001.0,63000.0,0.00924]
[1719876121238,2.0938909,63001.0,63000.0,0.00924]
[1719876121415,3.0553459,63001.0,63000.0,0.00924]
[1719876121616,3.13943068,63001.0,63000.0,0.00924]
[1719876122250,3.40179909,63001.0,63000.0,0.00924]
[1719876123119,2.94201538,63001.0,63000.0,0.00924]
[1719876123487,3.1529759,63001.0,63000.0,0.00924]
[1719876123723,3.25946155,63001.0,63000.0,0.00924]
[1719876123870,2.94200655,63001.0,63000.0,0.00924]
[1719876124075,3.24200655,63001.0,63000.0,0.00924]
[1719876124751,3.05699138,63001.0,63000.0,0.00924]
[1719876125564,3.21856425,63001.0,63000.0,0.00924]
[1719876125710,3.24177391,63001.0,63000.0,0.00924]
[1719876125910,3.05699138,63001.0,63000.0,0.00924]
[1719876126655,3.37444638,63001.0,63000.0,0.00924]
[1719876126883,3.05699138,63001.0,63000.0,0.00924]
[1719876127072,2.69229138,63001.0,63000.0,0.00924]
[1719876127316,2.78020138,63001.0,63000.0,0.00924]
[1719876127484,2.75699138,63001.0,63000.0,0.00924]
[1719876127932,2.65050573,63001.0,63000.0,0.00924]
[1719876128101,2.55717853,63001.0,63000.0,0.00924]
[1719876128247,2.75697853,63001.0,63000.0,0.00924]
[1719876128606,2.70570245,63001.0,63000.0,0.00924]
[1719876128759,2.75729122,63001.0,63000.0,0.00924]
[1719876132023,2.55749122,63001.0,63000.0,0.00924]
[1719876132193,2.75729122,63001.0,63000.0,0.00917991]
[1719876132371,2.94525007,63001.0,63000.0,0.00917991]
[1719876132692,3.1332298,63001.0,63000.0,0.00917991]
[1719876133035,2.88573768,63001.0,63000.0,0.00917991]
[1719876134854,2.68593768,63001.0,63000.0,0.00917991]
[1719876135058,2.88573768,63001.0,63000.0,0.00917991]
[1719876135660,2.88579999,63001.0,63000.0,0.00917991]
[1719876135981,2.5909829,63001.0,63000.0,0.00917991]
[1719876136176,2.88579999,63001.0,63000.0,0.00917991]
[1719876137459,3.18579999,63001.0,63000.0,0.00917991]
[1719876138010,3.50325499,63001.0,63000.0,0.00917991]
[1719876138644,3.94370999,63001.0,63000.0,0.00917991]
[1719876140538,3.94205672,63001.0,63000.0,0.00917991]
[1719876141757,3.75403626,63001.0,63000.0,0.00917991]
[1719876142109,3.94045202,63001.0,63000.0,0.00917991]
[1719876142518,4.09541807,63001.0,63000.0,0.00917991]
[1719876142651,3.94045202,63001.0,63000.0,0.00917991]
[1719876142857,3.9405283,63001.0,63000.0,0.00917991]
[1719876144971,3.83447873,63001.0,63000.0,0.00917991]
[1719876145137,3.94122077,63001.0,63000.0,0.00917991]
[1719876147087,4.10852077,63001.0,63000.0,0.00917991]
[1719876148263,3.94548445,63001.0,63000.0,0.00917991]
[1719876148463,4.10868378,63001.0,63000.0,0.00917991]
[1719876148784,4.10872444,63001.0,63000.0,0.00917991]
[1719876149544,4.09172444,63001.0,63000.0,0.00917991]
[1719876149769,4.42317944,63001.0,63000.0,9.1e-07]
[1719876149966,4.10572444,63001.0,63000.0,9.1e-07]
[1719876150168,4.18288505,63001.0,63000.0,9.1e-07]
[1719876151288,4.10702031,63001.0,63000.0,9.1e-07]
[1719876151490,4.10682808,63001.0,63000.0,9.1e-07]
[1719876151851,4.12082808,63001.0,63000.0,9.1e-07]
[1719876153903,3.08802137,62998.0,62997.0,7.8e-07]
[1719876154137,3.79592907,62998.0,62997.0,7.8e-07]
[1719876154348,3.9690258,62998.0,62997.0,7.8e-07]
[1719876154930,4.06886909,62998.0,62997.0,7.8e-07]
[1719876155336,4.08286909,62998.0,62997.0,7.8e-07]
[1719876155879,4.09686909,62998.0,62997.0,7.8e-07]
[1719876157415,4.0962587,62998.0,62997.0,7.8e-07]
[1719876158224,4.09614183,62998.0,62997.0,7.8e-07]
[1719876160560,4.09172667,62998.0,62997.0,7.8e-07]
[1719876161058,4.0689897,62998.0,62997.0,7.8e-07]
[1719876161234,4.09175675,62998.0,62997.0,7.8e-07]
[1719876161554,4.21640485,62998.0,62997.0,7.8e-07]
[1719876163217,4.15170485,62998.0,62997.0,7.8e-07]
[1719876163425,4.21640485,62998.0,62997.0,7.8e-07]
[1719876163622,4.18195177,62998.0,62997.0,7.8e-07]
[1719876163838,4.21661598,62998.0,62997.0,7.8e-07]
[1719876164033,4.21661598,62998.0,62997.0,0.00015522]
[1719876164241,4.20972549,62998.0,62997.0,0.00015522]
[1719876166080,4.13038245,62998.0,62997.0,0.00015522]
[1719876166579,4.00573435,62998.0,62997.0,0.00015522]
[1719876166778,4.00549961,62998.0,62997.0,0.00015522]
[1719876167158,3.94079961,62998.0,62997.0,0.00015522]
[1719876167322,4.00549961,62998.0,62997.0,0.00015522]
[1719876169966,3.71558861,62998.0,62997.0,0.00015522]
[1719876170170,4.01125336,62998.0,62997.0,0.00015522]
[1719876171690,4.0170506,62998.0,62997.0,0.00015522]
[1719876172116,3.8497506,62998.0,62997.0,0.00015522]
[1719876172395,4.0170506,62998.0,62997.0,0.00015522]
[1719876173122,4.01712447,62998.0,62997.0,0.00015522]
[1719876173520,3.72138585,62998.0,62997.0,0.00015522]